bitfinex-derivatives/quotes_ETHF0:USTF0_20241007
["timestamp","ask_amount","ask_price","bid_price","bid_amount"]
[1728297304272,0.6469,2450.8,2450.4,5.08695]
[1728297304273,0.6469,2450.8,2450.4,12.3466]
[1728297304486,0.40812,2450.7,2450.6,0.4081]
[1728297304676,0.6281,2451.0,2450.6,4.46]
[1728297304873,0.6088,2451.1,2450.8,3.2078]
[1728297305076,0.40807,2451.0,2450.9,1.05985]
[1728297305277,0.40805,2451.0,2450.9,0.6518]
[1728297306087,0.40805,2451.0,2450.9,1.05987]
[1728297306686,1.6289,2451.1,2451.0,0.40805]
[1728297306687,1.01685,2451.1,2451.0,0.40805]
[1728297309182,1.01685,2451.1,2451.0,3.61585]
[1728297312087,1.01685,2451.1,2451.0,0.40805]
[1728297312287,0.40803,2451.3,2451.2,0.40801]
[1728297312491,1.4281,2451.2,2451.1,0.40803]
[1728297312690,0.40804,2451.2,2451.1,0.40803]
[1728297314393,0.40804,2451.1,2451.0,3.61585]
[1728297315387,0.40804,2451.1,2451.0,3.2078]
[1728297315793,0.40803,2451.2,2451.0,3.2078]
[1728297315999,0.6204,2451.3,2451.0,7.6678]
[1728297316194,1.02842,2451.3,2451.2,0.40802]
[1728297316489,0.6204,2451.3,2451.2,0.40802]
[1728297316689,0.408,2451.4,2451.3,0.40798]
[1728297317487,0.408,2451.4,2451.3,1.06068]
[1728297318088,1.01993,2451.5,2451.4,0.40797]
[1728297318089,0.40798,2451.5,2451.4,0.40797]
[1728297318294,1.05427,2451.6,2451.5,0.40797]
[1728297318915,0.40795,2451.7,2451.6,0.40793]
[1728297319095,0.40795,2451.7,2451.6,4.86793]
[1728297319394,1.01972,2452.0,2451.6,4.86793]
[1728297319395,0.40792,2451.8,2451.7,0.40791]
[1728297319599,0.6315,2452.1,2452.0,0.40789]
[1728297319600,1.03938,2452.1,2452.0,0.40789]
[1728297319797,1.03938,2452.1,2451.7,1.67292]
[1728297319798,0.6315,2452.1,2451.7,0.6531]
[1728297320102,0.40794,2451.7,2451.6,3.61574]
[1728297320400,0.40792,2451.9,2451.8,0.40791]
[1728297320986,0.40792,2451.9,2451.8,4.86791]
[1728297321396,0.6315,2452.1,2451.8,4.46]
[1728297321598,0.4079,2452.0,2451.9,0.40789]
[1728297322200,0.4079,2452.0,2451.9,0.6246]
[1728297322696,0.40792,2451.9,2451.6,7.6678]
[1728297322886,0.40792,2451.9,2451.8,0.40791]
[1728297323087,0.40792,2451.9,2451.8,4.86791]
[1728297323289,0.6315,2452.1,2451.8,4.46]
[1728297323493,0.4079,2451.9,2451.8,4.86791]
[1728297323794,0.4079,2452.0,2451.9,0.40789]
[1728297324497,0.40794,2451.8,2451.7,0.40792]
[1728297324691,0.40794,2451.7,2451.6,3.2078]
[1728297324893,0.40794,2451.7,2451.6,3.61575]
[1728297325687,0.6054,2451.8,2451.6,3.61575]
[1728297325688,0.6054,2451.8,2451.6,3.2078]
[1728297325891,1.01334,2451.8,2451.7,0.40794]
[1728297326193,0.40794,2451.8,2451.7,0.40794]
[1728297326406,0.40789,2452.0,2451.9,0.40789]
[1728297326602,1.2369,2452.1,2452.0,0.40789]
[1728297326603,1.03938,2452.1,2452.0,0.40789]
[1728297327189,1.03938,2452.1,2451.9,7.6678]
[1728297327190,0.6315,2452.1,2451.9,7.6678]
[1728297327404,0.40789,2452.0,2451.9,3.61569]
[1728297329903,1.01259,2452.0,2451.9,3.61569]
[1728297330706,1.01259,2452.0,2451.9,3.2078]
[1728297330901,1.01259,2452.0,2451.9,3.6157]
[1728297332199,1.01259,2452.0,2451.9,3.2078]
[1728297334498,0.40789,2452.0,2451.9,3.6157]
[1728297334698,0.40789,2452.0,2451.9,3.2078]
[1728297334897,0.40789,2452.0,2451.9,7.6678]
[1728297335102,0.40789,2452.0,2451.9,3.2078]
[1728297335297,1.69279,2452.0,2451.9,3.2078]
[1728297337005,1.04279,2452.0,2451.9,3.6157]
[1728297338001,0.40789,2452.0,2451.9,3.6157]
[1728297338210,0.40789,2452.0,2451.9,8.0757]
[1728297338508,0.40789,2452.0,2451.9,8.6919]
[1728297339110,0.40789,2452.0,2451.9,8.0757]
[1728297339417,0.40789,2452.0,2451.9,3.2078]
[1728297340309,0.40789,2452.0,2451.9,3.6157]
[1728297340509,0.40789,2452.0,2451.9,3.2078]
[1728297341206,0.40789,2452.0,2451.9,3.6157]
[1728297341402,0.40789,2452.0,2451.9,3.2078]
[1728297342107,0.6315,2452.1,2451.7,4.46]
[1728297342307,0.6315,2452.1,2451.2,3.2078]
[1728297342308,5.0646,2451.9,2451.2,3.2078]
[1728297342609,0.408,2451.4,2451.3,0.40799]
[1728297342810,0.408,2451.3,2451.2,4.26731]
[1728297343007,0.408,2451.3,2451.2,8.72731]
[1728297344008,0.408,2451.3,2451.2,4.26731]
[1728297344212,0.408,2451.3,2451.2,3.8593]
[1728297344610,0.408,2451.3,2451.2,3.2078]
[1728297344812,0.40805,2451.0,2450.9,3.2078]
[1728297345008,0.4081,2450.7,2450.6,3.2078]
[1728297345503,1.2596,2450.9,2450.6,3.2078]
[1728297345814,1.2596,2450.9,2450.7,4.46]
[1728297345815,0.6334,2450.9,2450.7,4.46]
[1728297346002,0.40808,2450.9,2450.8,0.40808]
[1728297346208,0.40807,2450.9,2450.8,1.03288]
[1728297346602,0.40806,2451.0,2450.8,0.6248]
[1728297346807,0.65,2451.2,2450.8,0.6248]
[1728297347004,0.65,2451.2,2450.9,3.2078]
[1728297347214,1.05803,2451.2,2451.1,0.40804]
[1728297347710,1.05803,2451.2,2450.9,7.6678]
[1728297347917,0.40805,2451.1,2451.0,0.40804]
[1728297348217,0.40805,2451.0,2450.9,3.61586]
[1728297352411,0.40805,2451.1,2451.0,0.40804]
[1728297352917,1.05802,2451.2,2451.1,0.40804]
[1728297353714,0.40802,2451.2,2451.1,0.40804]
[1728297356323,0.6207,2451.5,2451.1,8.54]
[1728297356625,0.408,2451.4,2451.3,0.40799]
[1728297361825,0.408,2451.3,2451.2,4.87641]
[1728297362222,0.408,2451.3,2451.2,8.95561]
[1728297363217,0.408,2451.3,2451.2,4.87641]
[1728297363725,0.408,2451.3,2451.2,3.855]
[1728297363936,1.6385,2451.3,2451.2,4.26302]
[1728297364628,1.6385,2451.3,2451.0,0.40805]
[1728297364629,0.40805,2451.1,2451.0,0.40805]
[1728297364834,0.40805,2451.0,2450.9,4.26106]
[1728297365127,0.40805,2451.0,2450.9,4.26107]
[1728297365924,0.40805,2451.1,2451.0,0.40805]
[1728297366226,0.40804,2451.2,2451.1,0.40802]
[1728297366528,0.40805,2451.0,2450.9,4.26106]
[1728297369021,0.40805,2451.1,2451.0,0.40803]
[1728297370631,0.40803,2451.2,2451.1,0.40802]
[1728297374230,1.00072,2451.3,2451.2,0.40802]
[1728297375333,1.00072,2451.3,2451.2,3.61582]
[1728297377445,1.00072,2451.3,2451.2,3.2078]
[1728297377940,0.40802,2451.2,2451.1,0.40803]
[1728297378131,0.40802,2451.2,2451.1,3.61583]
[1728297378533,1.00642,2451.2,2451.1,3.61583]
[1728297378732,1.00642,2451.2,2451.1,3.2078]
[1728297379037,1.00642,2451.2,2450.9,0.6452]
[1728297379038,0.40805,2451.0,2450.9,0.6452]
[1728297379938,0.40805,2451.0,2450.9,1.05326]
[1728297380133,0.5927,2451.3,2450.9,4.7252]
[1728297380339,1.00071,2451.3,2451.2,0.40802]
[1728297382534,2.02073,2451.3,2451.2,0.40802]
[1728297382739,1.00071,2451.3,2451.2,0.40802]
[1728297383933,0.40802,2451.2,2451.1,3.61582]
[1728297384134,0.40802,2451.2,2451.1,3.61584]
[1728297385041,0.40802,2451.2,2451.1,3.2078]
[1728297386033,0.40802,2451.2,2451.1,3.61584]
[1728297389147,0.5927,2451.3,2451.1,3.2078]
[1728297389450,1.89782743,2451.4,2451.1,3.2078]
[1728297389451,0.408,2451.4,2451.3,0.40799]
[1728297390741,1.0074,2451.4,2451.3,0.40799]
[1728297396940,0.40802,2451.2,2451.1,3.61583]
[1728297397140,0.40802,2451.2,2451.1,3.61584]
[1728297397535,0.40802,2451.2,2450.9,0.6452]
[1728297397752,0.40809,2450.8,2450.7,1.47736546]
[1728297398044,0.4081,2450.7,2450.6,0.6358]
[1728297398245,1.6662,2450.7,2450.6,1.04392]
[1728297400049,1.6662,2450.7,2450.6,0.6358]
[1728297400549,1.6662,2450.7,2450.6,1.04392]
[1728297401251,0.6412,2450.7,2450.6,1.04392]
[1728297401450,0.4081,2450.8,2450.7,0.40809]
[1728297402151,0.40808,2450.9,2450.8,0.40809]
[1728297404857,0.40808,2450.9,2450.6,0.6358]
[1728297404858,0.4081,2450.8,2450.7,0.40809]
[1728297406057,5.0926,2450.9,2450.5,3.2078]
[1728297406353,0.40812,2450.6,2450.5,3.61594]
[1728297406554,0.40812,2450.6,2450.5,3.2078]
[1728297407061,0.40812,2450.6,2450.5,3.61594]
[1728297408748,0.649,2450.7,2450.5,3.2078]
[1728297408962,1.05712,2450.7,2450.6,0.40812]
[1728297409655,0.40812,2450.6,2450.5,3.61592]
[1728297410256,0.40812,2450.7,2450.6,0.40809]
[1728297415551,0.40812,2450.7,2450.5,3.2078]
[1728297415766,1.01002,2450.6,2450.5,3.61592]
[1728297418356,0.40812,2450.6,2450.5,3.61592]
[1728297423757,0.4081,2450.8,2450.7,0.40807]
[1728297424270,1.01167,2451.0,2450.9,0.40807]
[1728297426665,4.46,2451.4,2450.8,4.4502]
[1728297426877,0.40802,2451.3,2451.2,0.40801]
[1728297427178,0.40802,2451.3,2451.2,3.61581]
[1728297427567,0.408,2451.4,2451.3,0.40799]
[1728297428867,0.40798,2451.5,2451.4,0.40796]
[1728297429076,0.40795,2451.6,2451.5,0.40795]
[1728297429286,0.40795,2451.6,2451.5,3.61575]
[1728297432090,0.40795,2451.6,2451.5,3.2078]
[1728297432274,0.40795,2451.6,2451.5,3.61575]
[1728297432475,0.40795,2451.6,2451.5,3.2078]
[1728297441988,0.40797,2451.5,2451.4,0.40797]
[1728297442193,0.40797,2451.5,2451.4,3.61577]
[1728297444501,0.40797,2451.6,2451.5,0.40795]
[1728297445186,4.22752,2452.1,2451.5,4.0792]
[1728297445390,4.22752,2452.1,2451.4,7.6678]
[1728297445391,0.99589,2452.1,2452.0,0.40789]
[1728297445595,2.03873,2452.9,2452.0,3.2078]
[1728297445596,0.5886,2452.5,2452.0,3.2078]
[1728297445790,0.588,2452.2,2452.1,1.01656]
[1728297445991,0.99585,2452.2,2452.1,1.01656]
[1728297446297,0.99585,2452.2,2452.1,0.6087]
[1728297447095,0.99585,2452.2,2452.1,1.01657]
[1728297447490,0.99585,2452.2,2452.1,0.6087]
[1728297447796,0.99585,2452.2,2452.1,1.01657]
[1728297448190,0.99585,2452.2,2452.1,0.6087]
[1728297448586,0.99585,2452.2,2452.1,1.01657]
[1728297449198,0.99585,2452.2,2452.1,0.6087]
[1728297449989,0.99585,2452.2,2452.1,1.01657]
[1728297450699,0.99585,2452.2,2452.1,0.6087]
[1728297451891,0.99585,2452.2,2452.1,1.01657]
[1728297452087,0.99585,2452.2,2452.1,0.6087]
[1728297452288,0.40787,2452.1,2452.0,3.2078]
[1728297452494,0.40792,2451.8,2451.7,0.6425]
[1728297453296,0.40792,2451.8,2451.7,1.05044]
[1728297454693,0.40791,2452.0,2451.9,0.40789]
[1728297456498,0.40791,2452.0,2451.8,2.06]
[1728297456691,0.40792,2451.9,2451.8,0.40791]
[1728297456887,0.40792,2451.9,2451.7,2.7025]
[1728297456888,0.40792,2451.8,2451.7,3.11043]
[1728297461499,0.6373,2451.9,2451.7,3.11043]
[1728297461500,0.40792,2451.9,2451.8,0.4079]
[1728297462604,0.40792,2451.9,2451.8,2.4679]
[1728297464405,0.40792,2451.9,2451.8,0.4079]
[1728297465803,0.40792,2451.9,2451.7,3.72234]
[1728297465804,0.40792,2451.9,2451.7,0.6425]
[1728297466004,2.06,2451.8,2451.6,3.2078]
[1728297466209,1.05224,2451.7,2451.6,3.61574]
[1728297466709,0.6443,2451.7,2451.6,3.61574]
[1728297467006,1.05224,2451.7,2451.6,3.61574]
[1728297467203,0.40792,2451.9,2451.6,3.2078]
[1728297467400,1.05222,2451.9,2451.6,3.2078]
[1728297467714,2.46794,2451.7,2451.6,3.2078]
[1728297468104,3.07434,2451.7,2451.6,3.61575]
[1728297468405,1.01434,2451.7,2451.6,3.61575]
[1728297469002,1.01434,2451.7,2451.6,3.2078]
[1728297469200,3.07434,2451.7,2451.6,3.2078]
[1728297470798,0.408,2451.4,2451.2,3.8442]
[1728297471006,2.468,2451.3,2451.2,3.2078]
[1728297471210,4.3013,2451.3,2451.2,3.2078]
[1728297471710,4.3013,2451.3,2451.2,3.61582]
[1728297471907,4.3013,2451.3,2451.2,3.2078]
[1728297472304,4.3013,2451.3,2451.2,3.61582]
[1728297472506,1.6403,2451.3,2451.2,3.61582]
[1728297472705,0.6282,2451.3,2451.2,3.61582]
[1728297473410,1.0362,2451.3,2451.2,3.61582]
[1728297473907,1.6267,2451.3,2451.2,3.2078]
[1728297476814,1.6267,2451.3,2451.2,3.61582]
[1728297480222,1.6267,2451.3,2451.2,3.2078]
[1728297480918,1.6267,2451.3,2451.2,3.61582]
[1728297481618,1.6267,2451.3,2451.2,3.2078]
[1728297481823,1.6267,2451.3,2451.2,3.61582]
[1728297482021,1.6267,2451.3,2451.2,3.2078]
[1728297482224,1.6267,2451.3,2451.2,3.61582]
[1728297486420,1.6267,2451.3,2451.2,3.2078]
[1728297486921,5.6787,2451.3,2450.9,3.8099]
[1728297487118,0.40799,2451.4,2451.3,0.40799]
[1728297487321,0.408,2451.4,2451.2,3.2078]
[1728297487620,0.40799,2451.5,2451.4,0.40798]
[1728297487812,0.40799,2451.4,2451.3,1.0582]
[1728297488016,0.40799,2451.4,2451.2,3.2078]
[1728297488017,0.408,2451.3,2451.2,3.61581]
[1728297488318,1.0505,2451.3,2451.2,3.61581]
[1728297488713,0.6425,2451.3,2451.2,3.61581]
[1728297491222,0.6146,2451.5,2451.4,0.40799]
[1728297492522,2.6746,2451.5,2451.4,0.40799]
[1728297494328,2.6746,2451.5,2451.2,4.86394]
[1728297494329,0.6148,2451.6,2451.2,6.92394]
[1728297494525,0.6148,2451.6,2451.5,3.61577]
[1728297497619,1.02275,2451.6,2451.5,0.40797]
[1728297497828,1.63084,2452.0,2451.2,6.92394]
[1728297497829,3.2078,2452.2,2451.4,2.06]
[1728297498023,4.95669,2452.6,2452.0,5.2678]
[1728297498222,0.40785,2452.2,2452.1,1.01346]
[1728297498424,2.46785,2452.3,2452.2,0.40785]
[1728297498626,0.40785,2452.2,2452.1,0.6056]
[1728297498935,1.05485,2452.2,2452.1,0.6056]
[1728297499129,3.75235,2452.2,2452.1,0.6056]
[1728297501029,1.69235,2452.2,2452.1,1.01347]
[1728297501632,0.647,2452.2,2452.1,1.01347]
[1728297502226,2.7005,2452.4,2452.1,0.6056]
[1728297502433,1.01232,2452.4,2452.3,3.61564]
[1728297502629,1.01232,2452.4,2452.3,0.40784]
[1728297503144,0.6045,2452.4,2452.3,0.40784]
[1728297503337,0.6045,2452.4,2452.3,3.61564]
[1728297508042,1.01232,2452.4,2452.3,3.2078]
[1728297508241,0.40784,2452.3,2452.2,0.40784]
[1728297508443,2.46784,2452.3,2452.2,0.40784]
[1728297509152,0.40785,2452.2,2452.1,1.01346]
[1728297509552,0.40785,2452.2,2451.7,3.2078]
[1728297509553,6.1384,2452.2,2451.7,3.2078]
[1728297509759,2.46792,2451.8,2451.7,3.2078]
[1728297510054,6.1384,2451.8,2451.3,3.8248]
[1728297510238,6.1384,2451.8,2451.5,0.40797]
[1728297510239,0.40797,2451.6,2451.5,0.40797]
[1728297511147,2.46797,2451.6,2451.5,0.40797]
[1728297512155,3.278,2451.7,2451.6,0.40795]
[1728297512349,0.40791,2451.9,2451.8,0.40792]
[1728297513645,0.40792,2451.8,2451.7,0.6115]
[1728297513846,0.40792,2451.8,2451.6,4.83544]
[1728297513847,0.40794,2451.7,2451.6,3.2078]
[1728297514043,0.40797,2451.6,2451.5,0.40797]
[1728297514245,0.40797,2451.5,2451.4,1.02657]
[1728297517250,1.01986,2451.7,2451.4,0.6186]
[1728297517454,0.40797,2451.5,2451.4,1.02658]
[1728297517843,0.40797,2451.5,2451.4,0.6186]
[1728297519355,0.40797,2451.5,2451.4,1.02659]
[1728297520151,0.40795,2451.7,2451.6,0.40794]
[1728297520555,0.40795,2451.7,2451.6,3.61574]
[1728297520857,0.40795,2451.7,2451.6,4.20864]
[1728297521243,1.63348,2451.9,2451.6,3.8007]
[1728297521443,0.40793,2451.8,2451.7,0.40792]
[1728297524253,0.40791,2452.0,2451.9,0.40789]
[1728297524453,0.40791,2452.0,2451.9,3.61569]
[1728297524658,0.40791,2452.0,2451.9,3.2078]
[1728297524960,0.40791,2452.0,2451.9,3.6157]
[1728297525159,0.40791,2452.0,2451.9,3.2078]
[1728297525457,0.40791,2452.0,2451.9,3.6157]
[1728297526063,0.40791,2452.0,2451.9,3.2078]
[1728297526557,0.40791,2452.0,2451.9,3.8496]
[1728297531464,0.40791,2452.0,2451.9,4.2575]
[1728297533366,1.64584,2452.3,2451.9,3.8496]
[1728297533563,0.40789,2452.1,2452.0,1.67057]
[1728297535777,0.40787,2452.2,2452.1,0.40784]
[1728297537271,0.40787,2452.2,2452.0,1.2627]
[1728297537572,0.40787,2452.1,2452.0,0.6487]
[1728297538774,0.40789,2452.0,2451.9,3.8496]
[1728297538977,1.64029,2452.0,2451.9,3.8496]
[1728297540666,1.03029,2452.0,2451.9,4.2575]
[1728297542065,0.40789,2452.0,2451.9,4.2575]
[1728297542768,1.64561,2452.3,2451.9,3.8496]
[1728297543073,0.40787,2452.2,2452.1,0.40785]
[1728297543267,0.40787,2452.2,2452.1,3.61565]
[1728297544570,1.61584,2452.5,2452.1,7.2862]
[1728297544571,1.01954,2452.5,2452.1,7.2862]
[1728297544772,0.40784,2452.4,2452.3,3.61562]
[1728297545165,0.40784,2452.4,2452.3,4.24142]
[1728297546673,0.40782,2452.5,2452.4,0.4078]
[1728297550472,0.4078,2452.6,2452.5,0.40779]
[1728297550777,1.2227,2452.7,2452.5,0.40779]
[1728297550969,1.04247,2452.7,2452.6,3.61559]
[1728297551170,0.6347,2452.7,2452.6,3.61559]
[1728297551569,1.04247,2452.7,2452.6,3.61559]
[1728297552176,0.40777,2452.7,2452.6,3.61559]
[1728297559984,0.40777,2452.7,2452.6,3.2078]
[1728297560178,0.40777,2452.7,2452.6,3.61559]
[1728297563485,0.40777,2452.7,2452.6,0.40779]
[1728297563991,0.40777,2452.7,2452.6,0.99409]
[1728297564488,0.40777,2452.7,2452.6,0.5863]
[1728297564684,0.40779,2452.6,2452.5,3.2078]
[1728297564886,1.64889,2452.6,2452.5,3.2078]
[1728297568784,2.52414361,2452.6,2452.5,3.2078]
[1728297571191,1.28304361,2452.6,2452.5,3.2078]
[1728297571388,0.40779,2452.6,2452.5,3.2078]
[1728297571787,0.40782,2452.4,2452.3,0.5913]
[1728297571992,0.40788,2452.2,2451.9,4.4803]
[1728297572291,0.40789,2452.1,2452.0,1.01528]
[1728297573282,1.28302685,2452.2,2452.1,0.40787]
[1728297573283,0.87514685,2452.2,2452.1,0.40787]
[1728297573696,0.40784,2452.3,2452.2,0.40785]
[1728297582584,1.04434,2452.3,2452.2,0.40785]
[1728297585191,1.04434,2452.3,2452.2,3.61565]
[1728297588894,1.04434,2452.3,2452.2,0.40785]
[1728297589403,1.04434,2452.3,2452.2,3.61565]
[1728297589601,0.6365,2452.3,2452.2,3.61565]
[1728297590001,1.04434,2452.3,2452.2,3.61565]
[1728297591594,0.6365,2452.3,2452.2,3.61565]
[1728297595498,2.6965,2452.3,2452.0,0.6074]
[1728297595710,0.40787,2452.1,2452.0,1.01528]
[1728297596192,1.04517,2452.1,2452.0,1.01528]
[1728297600805,1.04517,2452.1,2452.0,0.40788]
[1728297604020,0.6373,2452.1,2452.0,0.40788]
[1728297604709,1.04517,2452.1,2452.0,0.40788]
[1728297605807,0.6373,2452.1,2452.0,0.40788]
[1728297606002,1.04517,2452.1,2452.0,0.40788]
[1728297606611,1.92124325,2452.1,2452.0,0.40788]
[1728297607202,1.92124325,2452.1,2451.6,0.6065]
[1728297607203,0.40789,2452.0,2451.6,3.2078]
[1728297607415,2.06,2451.7,2451.6,3.61575]
[1728297607703,3.34400325,2451.8,2451.6,3.2078]
[1728297607908,0.87607325,2451.8,2451.7,2.46794]
[1728297608211,1.92833325,2452.2,2452.1,0.40787]
[1728297608506,1.69686,2452.2,2452.1,0.40787]
[1728297608710,1.92835457,2452.2,2452.1,0.40787]
[1728297608904,1.05246,2452.2,2452.1,1.05637]
[1728297609207,1.05246,2452.2,2452.1,0.6485]
[1728297609506,1.05246,2452.2,2452.0,0.6443]
[1728297609507,0.40787,2452.1,2452.0,0.6443]
[1728297610001,2.46787,2452.1,2452.0,0.6443]
[1728297610199,3.34376457,2452.1,2452.0,0.6443]
[1728297612305,3.34376457,2452.1,2451.8,1.05641]
[1728297612306,2.93589457,2452.1,2451.8,1.05641]
[1728297612504,0.4079,2451.9,2451.8,1.70671]
[1728297614209,0.4079,2451.9,2451.8,1.2988]
[1728297614408,3.065,2451.9,2451.8,0.6503]
[1728297614817,1.005,2451.9,2451.8,0.6503]
[1728297615207,1.005,2451.9,2451.8,1.05822]
[1728297617210,1.005,2451.9,2451.8,0.6503]
[1728297619418,1.005,2451.9,2451.5,6.91063]
[1728297619419,0.40794,2451.7,2451.6,0.40794]
[1728297619914,2.46794,2451.7,2451.6,0.40794]
[1728297620818,2.46794,2451.7,2451.5,4.4233]
[1728297621010,0.40795,2451.6,2451.5,4.83126]
[1728297622519,0.40794,2451.7,2451.5,4.4233]
[1728297622822,1.05024,2451.8,2451.7,0.40794]
[1728297623318,1.05024,2451.8,2451.5,4.83125]
[1728297623319,0.40795,2451.6,2451.5,4.83125]
[1728297623814,0.40795,2451.7,2451.6,0.40794]
[1728297625510,0.40795,2451.7,2451.5,4.4233]
[1728297625511,0.40795,2451.7,2451.5,3.8004]
[1728297625714,1.01795,2451.6,2451.5,3.8004]
[1728297626421,1.01795,2451.6,2451.5,4.20837]
[1728297627818,0.40795,2451.6,2451.5,4.20837]
[1728297634045,0.40795,2451.6,2451.5,3.8004]
[1728297634446,1.46435,2451.6,2451.5,3.8004]
[1728297635053,1.46435,2451.6,2451.5,3.2078]
[1728297635362,3.52435,2451.6,2451.5,3.2078]
[1728297635755,13.60355,2451.6,2451.5,3.2078]
[1728297635963,0.408,2451.3,2451.2,0.40801]
[1728297636158,2.468,2451.3,2451.2,0.40801]
[1728297636361,3.5011,2451.3,2451.2,0.40801]
[1728297636865,8.19232,2451.3,2451.0,3.2078]
[1728297637163,0.40805,2451.0,2450.9,0.91585]
[1728297638361,2.46805,2451.0,2450.9,0.5078]
[1728297638553,2.96105,2451.0,2450.9,0.5078]
[1728297638754,0.40809,2450.8,2450.7,0.4081]
[1728297638959,0.40812,2450.7,2450.6,0.40811]
[1728297639162,0.90112,2450.7,2450.6,0.40811]
[1728297640568,4.98192,2450.7,2450.4,3.2078]
[1728297640867,2.96112,2450.7,2450.4,3.2078]
[1728297641069,2.96112,2450.7,2450.6,0.40812]
[1728297641448,7.04192,2450.7,2450.6,0.40812]
[1728297641648,2.96112,2450.7,2450.6,0.40812]
[1728297641851,7.04192,2450.7,2450.6,0.40812]
[1728297642452,0.40812,2450.7,2450.6,0.40812]
[1728297642733,0.40812,2450.7,2450.4,4.22819]
[1728297642734,2.06,2450.8,2450.4,6.79329]
[1728297642938,2.46809,2450.8,2450.7,0.4081]
[1728297643335,0.40809,2450.8,2450.7,0.4081]
[1728297644334,0.5386,2450.9,2450.6,3.1356]
[1728297644532,0.94668,2450.9,2450.8,0.40809]
[1728297646046,0.94668,2450.9,2450.8,3.61589]
[1728297646245,1.02,2451.4,2450.8,8.30802]
[1728297646440,0.40804,2451.2,2451.1,0.40803]
[1728297646940,0.40804,2451.1,2451.0,0.91034]
[1728297650243,2.5589,2451.2,2451.0,0.5023]
[1728297650443,2.96694,2451.2,2451.1,0.40804]
[1728297654346,0.40804,2451.1,2451.0,0.91034]
[1728297654547,2.46804,2451.1,2451.0,0.40804]
[1728297655954,3.00644,2451.1,2451.0,0.40804]
[1728297656648,2.5984,2451.1,2450.8,3.719]
[1728297656846,0.94347,2451.0,2450.8,3.719]
[1728297657053,0.94347,2451.0,2450.8,0.91927]
[1728297657054,2.46807,2450.9,2450.8,0.91927]
[1728297657651,2.6019,2450.9,2450.7,0.40809]
[1728297657855,0.40809,2450.8,2450.7,0.40809]
[1728297658354,2.46809,2450.8,2450.7,0.40809]
[1728297662161,0.94347,2451.0,2450.9,0.40807]
[1728297663962,0.5354,2451.0,2450.9,0.40807]
[1728297664263,0.40804,2451.2,2451.1,0.40803]
[1728297664862,0.40804,2451.2,2451.1,0.90293]
[1728297668257,0.5305,2451.3,2451.1,0.4949]
[1728297668566,0.40799,2451.5,2451.4,0.40799]
[1728297669065,4.98119,2451.5,2451.4,0.40799]
[1728297669260,0.90199,2451.5,2451.4,0.40799]
[1728297669668,0.90199,2451.5,2451.3,0.40799]
[1728297669669,0.408,2451.4,2451.3,0.40799]
[1728297676269,2.96199,2451.5,2451.2,3.2078]
[1728297676467,0.40797,2451.6,2451.5,0.40795]
[1728297677272,0.40797,2451.6,2451.5,3.61575]
[1728297678874,0.40797,2451.6,2451.5,3.2078]
[1728297679170,0.40797,2451.6,2451.5,3.61577]
[1728297682075,0.40797,2451.6,2451.5,3.2078]
[1728297682269,2.46797,2451.6,2451.5,3.61577]
[1728297682970,0.40794,2451.7,2451.6,0.40794]
[1728297684971,0.40794,2451.7,2451.6,0.92274]
[1728297685171,0.40792,2451.8,2451.7,0.40794]
[1728297685377,0.40792,2451.9,2451.8,0.40791]
[1728297686066,0.40792,2451.9,2451.8,0.93591]
[1728297686775,0.40797,2451.6,2451.5,0.40796]
[1728297686979,2.46797,2451.6,2451.5,0.92186]
[1728297688375,1.01993,2451.5,2451.2,0.40802]
[1728297688674,2.468,2451.3,2451.2,0.40802]
[1728297689068,2.06,2451.3,2451.1,3.2078]
[1728297689268,0.40802,2451.2,2451.1,3.2078]
[1728297689479,0.40802,2451.2,2451.1,3.61584]
[1728297698302,3.1,2451.3,2451.1,3.2078]
[1728297698497,3.50802,2451.3,2451.2,0.40802]
[1728297701404,2.98742,2451.3,2451.2,0.40802]
[1728297701804,0.92742,2451.3,2451.2,0.40802]
[1728297704100,0.40802,2451.3,2451.2,0.40802]
[1728297712509,0.40802,2451.3,2451.1,3.2078]
[1728297712814,0.40802,2451.2,2451.1,3.61583]
[1728297715712,0.40801,2451.3,2451.2,0.408]
[1728297716613,0.408,2451.4,2451.3,0.40799]
[1728297716913,0.408,2451.4,2451.3,0.89009]
[1728297717611,0.40798,2451.5,2451.4,0.40797]
[1728297717810,0.40798,2451.5,2451.4,4.09697]
[1728297718010,0.40798,2451.5,2451.4,4.61127]
[1728297722322,0.40798,2451.5,2451.4,1.40347]
[1728297722523,0.40798,2451.5,2451.4,4.61127]
[1728297724319,0.40798,2451.5,2451.4,1.40347]
[1728297724829,0.4979,2451.6,2451.4,4.2033]
[1728297725128,0.90587,2451.6,2451.5,0.40797]
[1728297725330,0.40796,2451.7,2451.6,0.40794]
[1728297727121,0.40793,2451.8,2451.7,0.40792]
[1728297727423,0.40793,2451.8,2451.7,0.88522]
[1728297727731,0.40793,2451.8,2451.7,1.37762]
[1728297728427,0.40793,2451.8,2451.7,4.58542]
[1728297728623,3.59393,2452.0,2451.7,4.1775]
[1728297728624,2.5742,2452.0,2451.7,4.1775]
[1728297728830,0.4079,2452.0,2451.9,0.40789]
[1728297731435,0.40789,2452.1,2452.0,0.40787]